Cogmind - Beta 13 @@@ ROGUE MODE // 2024.04.05 @ 20:18:06 Player: Ben Meat Bible Result: Destroyed by RD-1GU(R) with Subdweller Beam Cannon Performance ------------- Evolutions (0) 0 Regions Visited (3) 600 Robots Destroyed (15) 75 Value Destroyed (395) 395 Prototype IDs (1) 20 Alien Tech Used (0) 0 Bonus (0) 0 TOTAL SCORE: 1090 Bonus ------- None Cogmind --------- Core Integrity 0/250 Matter 270/300 Energy 83/100 System Corruption 0% Temperature Cool (9) Movement Rolling (110) Location -10/Subcaves Parts ------- > --- POWER (1) -------- Subdweller Power Source > --- PROPULSION (2) --- Subdweller Monowheel Subdweller Monowheel > --- UTILITY (2) ------ (None) > --- WEAPON (2) ------- Flamer > --- INVENTORY (5) ---- Ion Engine Improved Heat Sink Decoy Drone Bay (16/16) Peak State ------------ > --- POWER ------------ Ion Engine > --- PROPULSION ------- Aluminum Leg Aluminum Leg > --- UTILITY ---------- Decoy Drone Bay > --- WEAPON ----------- Particle Gun Assault Rifle > --- INVENTORY -------- Aluminum Leg Wheel EM Pulse Gun [Rating: 20] Favorites ----------- Power Ion Engine Engine Ion Engine Propulsion Aluminum Leg Leg Aluminum Leg Wheel Subdweller Monowheel Utility Large Storage Unit Device Sensor Array Storage Large Storage Unit Protection Scrap Shield Weapon Assault Rifle Energy Gun Particle Gun Ballistic Gun Assault Rifle Launcher Grenade Launcher Special Weapon Flamer Build | -11 -10 -10 -10 ------- Run | Yrd Mat Min Sub Slots Evolved . | . . . . Power . | . . . . Propulsion . | . . . . Utility . | . . . . Weapon . | . . . . Parts Attached 27 | 6 6 3 12 Power 4 | 1 1 1 1 Engine 4 | 1 1 1 1 Core . | . . . . Reactor . | . . . . Propulsion 13 | 2 1 1 9 Treads . | . . . . Leg 4 | 2 1 1 . Wheel 9 | . . . 9 Hover . | . . . . Flight . | . . . . Utility 5 | 1 2 1 1 Device 2 | . 1 1 . Storage 2 | 1 1 . . Processor . | . . . . Hackware . | . . . . Protection 1 | . . . 1 Artifact . | . . . . Weapon 5 | 2 2 . 1 Energy Gun 2 | 1 1 . . Energy Cannon . | . . . . Ballistic Gun 1 | 1 . . . Ballistic Cannon . | . . . . Launcher 1 | . 1 . . Special Weapon 1 | . . . 1 Impact Weapon . | . . . . Slashing Weapon . | . . . . Piercing Weapon . | . . . . Special Melee Weapon . | . . . . Unidentified Prototypes 1 | . . 1 . Parts Lost 9 | . 2 2 5 Power 1 | . 1 . . Propulsion 3 | . . 1 2 Utility 2 | . . 1 1 Weapon 3 | . 1 . 2 Highest Loss Streak 5 | . 1 2 5 To Critical Strikes . | . . . . Average Slot Usage (%) 87 | . 97 84 78 Engine 13 | . 13 14 14 Leg 23 | . 28 27 5 Wheel 4 | . . . 20 Device 8 | . 12 7 . Storage 7 | . 14 6 . Protection 2 | . . . 12 Energy Gun 10 | . 4 14 12 Ballistic Gun 13 | . 14 14 12 Launcher 3 | . 8 . . Naked Turns . | . . . . Heaviest Build 31 | 14 31 31 28 Greatest Support 40 | 20 20 20 40 Greatest Overweight (x) 2 | . 1 2 1 Average Overweight (x) . | . . 1 . Largest Inventory Capacity 15 | 8 15 15 5 Average Capacity 10 | 6 14 9 5 Most Carried 8 | 3 5 8 5 Average Carried 4 | 1 3 5 4 Final Capacity 15 | 8 15 5 5 Final Carried 5 | 1 5 5 4 Class Distribution -------------------- 62% | Mutant 23% | Scavenger-Mutant 14% | Subdweller-Mutant Dominant Class ---------------- Mutant | -10/Materials Scavenger-Mutant | -10/Mines Subdweller-Mutant | -10/Subcaves Resources | -11 -10 -10 -10 ----------- Run | Yrd Mat Min Sub Matter Collected 580 | 185 171 99 125 Remotely . | . . . . Salvage Created 365 | . 173 78 114 Parts 32 | . 20 2 10 Haulers Intercepted . | . . . . Recyclers Shooed . | . . . . Parts Field Recycled . | . . . . Retrieved Matter . | . . . . Parts Self-Destructed 10 | . . . 10 Prevented . | . . . . Kills | -11 -10 -10 -10 ------- Run | Yrd Mat Min Sub Combat Hostiles Destroyed 12 | . 5 2 5 Guns 11 | . 4 2 5 AOE 1 | . 1 . . Classes Destroyed 6 | . 3 . 3 Builder 1 | . 1 . . Turret 1 | . . . 1 Watcher 1 | . 1 . . Swarmer 4 | . . . 4 Grunt 7 | . 5 2 . Subdweller 1 | . . . 1 Best Kill Streak 5 | . 2 2 5 Combat Bots Only 4 | . 1 2 4 Max Kills in Single Turn 2 | . 1 1 2 Gunslinging . | . . . . Exploded 1 | . 1 . . Melee . | . . . . Uniques/NPCs Destroyed . | . . . . Combat | -11 -10 -10 -10 -------- Run | Yrd Mat Min Sub Hostile Shots Fired 109 | . 47 15 47 Missed 31 | . 10 5 16 Damage Taken 1276 | . 507 170 599 Core 251 | . 71 27 153 Absorbed by Shields . | . . . . Core Remaining (%) 100 | 100 . . . Volleys Fired 48 | . 23 9 16 Largest 2 | . 2 2 2 Hottest 85 | . 85 85 85 Shots Fired 80 | . 38 18 24 Gun 75 | . 33 18 24 Cannon . | . . . . Launcher 5 | . 5 . . Special . | . . . . Kinetic 44 | . 23 9 12 Thermal 31 | . 10 9 12 Explosive 5 | . 5 . . Electromagnetic . | . . . . Robot Hit Streak 7 | . 7 4 6 Robot Miss Streak 3 | . 2 2 3 Penetration Max . | . . . . Secondary Targets 2 | . . 1 1 Max Gunslinging Chain 1 | . . 1 1 Shots Hit Robots 51 | . 26 12 13 Core Hits 27 | . 14 4 9 Critical Kills . | . . . . Critical Parts Destroyed 1 | . 1 . . Critical Strikes 2 | . 1 1 . Burn 1 | . . 1 . Destroy 1 | . 1 . . Melee Attacks . | . . . . Impact . | . . . . Slashing . | . . . . Piercing . | . . . . Sneak Attacks . | . . . . Combat Hostiles . | . . . . Follow-up Attacks . | . . . . Damage Inflicted 914 | 4 512 167 231 Guns 712 | . 314 167 231 Cannons . | . . . . Explosions 198 | . 198 . . Melee . | . . . . Ramming 4 | 4 . . . Kinetic 382 | . 223 61 98 Thermal 330 | . 91 106 133 Explosive 198 | . 198 . . Electromagnetic . | . . . . Impact . | . . . . Slashing . | . . . . Piercing . | . . . . Highest Corruption . | . . . . Average Corruption . | . . . . Corruption Purged . | . . . . Corruption Blocked . | . . . . Overload Shots . | . . . . Overflow Damage 16 | . 16 . . Projectiles . | . . . . Explosions 16 | . 16 . . Melee . | . . . . Knockbacks . | . . . . Impact . | . . . . Kinetic . | . . . . Secondary . | . . . . Self-Inflicted Damage 48 | . 48 . . Shots 2 | . 2 . . Rammed . | . . . . Targets Rammed 2 | 2 . . . Kicked 2 | 2 . . . Crushed . | . . . . Highest Temperature 294 | . 156 294 . Average Temperature 103 | . 52 160 . Received Heat Transfer 438 | . 258 78 102 Siege Activations . | . . . . Robots Corrupted . | . . . . Combat Hostiles . | . . . . Parts Fried . | . . . . Impact Corruptions . | . . . . Robots Melted . | . . . . Combat Hostiles . | . . . . Parts Melted . | . . . . Heat Transferred 851 | . 222 333 296 Parts Sabotaged . | . . . . Parts Stolen . | . . . . Parts Stripped . | . . . . Power Chain Reactions . | . . . . Alert | -11 -10 -10 -10 ------- Run | Yrd Mat Min Sub Peak Influence 136 | . 136 72 . Initial 42 | . . 42 . Average 27 | . 35 23 . Maximum Alert Level . | . . . . Low Security (%) 100 | 100 100 100 . Level 1 . | . . . . Level 2 . | . . . . Level 3 . | . . . . Level 4 . | . . . . Level 5 . | . . . . High Security . | . . . . Max Security . | . . . . Squads Dispatched 2 | . 2 . . Investigation 1 | . 1 . . Extermination . | . . . . Reinforcement 1 | . 1 . . Assault . | . . . . Garrison . | . . . . Intercept . | . . . . Searches Triggered . | . . . . Construction Impeded . | . . . . Haulers Reinforced . | . . . . Active Scanning Responses . | . . . . Cargo Convoy Interrupts . | . . . . Stealth | -11 -10 -10 -10 --------- Run | Yrd Mat Min Sub Distress Signals 1 | . 1 . . Communications Jammed . | . . . . Distress Signals . | . . . . Times Spotted 38 | . 14 2 22 Peak Tracking Total 7 | . 3 2 7 Tactical Retreats 5 | . 3 . 2 Traps | -11 -10 -10 -10 ------- Run | Yrd Mat Min Sub Traps Triggered 1 | . 1 . . Indirectly . | . . . . Trap Hack Attempts . | . . . . Triggered . | . . . . Disarmed . | . . . . Reprogrammed . | . . . . Reused . | . . . . Traps Extracted . | . . . . Installed . | . . . . Triggered . | . . . . Machines | -11 -10 -10 -10 ---------- Run | Yrd Mat Min Sub Machines Disabled 1 | . . . 1 Max in Single Turn 1 | . . . 1 Machines Repaired . | . . . . Machines Dismantled . | . . . . Machines Sabotaged . | . . . . Overloaded Fab Kills . | . . . . Hacking | -11 -10 -10 -10 --------- Run | Yrd Mat Min Sub Machines Accessed 3 | . 2 1 . Terminals 1 | . 1 . . Fabricators . | . . . . Repair Stations 1 | . 1 . . Recycling Units . | . . . . Scanalyzers . | . . . . Garrison Access . | . . . . Total Hacks 5 | . 4 1 . Successful 4 | . 3 1 . Failed 1 | . 1 . . Catastrophic . | . . . . Database Lockouts . | . . . . Manual 1 | . 1 . . Terminals 3 | . 3 . . Fabricators . | . . . . Repair Stations 1 | . 1 . . Recycling Units . | . . . . Scanalyzers . | . . . . Garrison Access . | . . . . Terminal Hacks 4 | . 3 1 . Record 2 | . 2 . . Open Door 1 | . . 1 . Zone Layout 1 | . 1 . . Fabricator Hacks . | . . . . Repair Station Hacks . | . . . . Recycling Unit Hacks . | . . . . Scanalyzer . | . . . . Garrison Access Hacks . | . . . . Unauthorized Hacks . | . . . . Terminals . | . . . . Fabricators . | . . . . Repair Stations . | . . . . Recycling Units . | . . . . Scanalyzers . | . . . . Garrison Access . | . . . . Data Cores Recovered . | . . . . Used . | . . . . Hacking Detections 2 | . 2 . . Full Trace Events 1 | . 1 . . Feedback Events . | . . . . Feedback Blocked . | . . . . Robot Schematics Acquired . | . . . . Robots Built . | . . . . Authchips . | . . . . Time . | . . . . Total Robot Build Rating . | . . . . Part Schematics Acquired . | . . . . Parts Built . | . . . . Authchips . | . . . . Time . | . . . . Total Part Build Rating . | . . . . Parts Repaired . | . . . . Time . | . . . . Parts Recycled . | . . . . Recycled Matter . | . . . . Retrieved Matter . | . . . . Retrieved Components . | . . . . Parts Scanalyzed . | . . . . Part Schematics Acquired . | . . . . Parts Damaged . | . . . . Bothacking | -11 -10 -10 -10 ------------ Run | Yrd Mat Min Sub Used RIF Installer . | . . . . Robots Hacked . | . . . . Non-combat . | . . . . Combat . | . . . . Robot Hacks Applied . | . . . . Relay Couplers Released . | . . . . Fabnet Peak Effective % . | . . . . Robots Rewired . | . . . . Allies Hacked . | . . . . Hacks Repelled . | . . . . Allies | -11 -10 -10 -10 -------- Run | Yrd Mat Min Sub Total Allies . | . . . . Largest Group . | . . . . Highest-Rated Group . | . . . . Highest-Rated Ally . | . . . . Total Orders . | . . . . Ally Attacks . | . . . . Total Damage . | . . . . Kills . | . . . . Allies Corrupted . | . . . . Allies Melted . | . . . . Intel | -11 -10 -10 -10 ------- Run | Yrd Mat Min Sub Robot Analysis Total . | . . . . Derelict Logs Recovered 1 | . . 1 . Drone Launches . | . . . . Drone Recoveries . | . . . . Exploration | -11 -10 -10 -10 ------------- Run | Yrd Mat Min Sub Turns Passed 2817 | 85 972 1201 559 Spaces Moved 1469 | 73 364 570 462 Core 63 | 22 . . 41 Treads . | . . . . Legs 1032 | 51 364 570 47 Wheels 374 | . . . 374 Hover . | . . . . Flight . | . . . . Fastest Speed 50 | 50 120 190 95 Average Speed 158 | 98 184 190 105 Slowest Speed 260 | 120 190 260 190 Overloaded Moves . | . . . . Propulsion Burnouts . | . . . . Robots Hopped . | . . . . Cave-ins Triggered . | . . . . Exploration Rate (%) 42 | 4 37 100 29 Regions Visited 3 Branch Regions 2 Pre-discovered Areas 1 | . . 1 . Known Exits Taken . | . . . . Unknown Exits Taken 3 | 1 1 1 . Scrap Searched 1 | . . 1 . Spaces Dug . | . . . . Terrain Destroyed 42 | . 42 . . Melee . | . . . . Projectile . | . . . . AOE 42 | . 42 . . Terrain Rammed . | . . . . Walls Destroyed . | . . . . Machines Disabled . | . . . . Actions | -11 -10 -10 -10 --------- Run | Yrd Mat Min Sub Total 1885 | 83 625 665 512 Wait 302 | . 225 77 . Move 1466 | 72 363 569 462 Hop . | . . . . Pick Up 22 | 3 6 5 8 Fast Attach 12 | 4 2 1 5 Attach 8 | 2 2 1 3 Detach 2 | . 1 . 1 Swap 7 | . 2 1 4 Drop 15 | . 1 2 12 Fire 48 | . 23 9 16 Melee . | . . . . Ram . | . . . . Kick 2 | 2 . . . Crush . | . . . . Escape Stasis . | . . . . Rewire 1 | . . . 1 Trap . | . . . . Miscellaneous . | . . . . Route ------- -11/Scrapyard -10/Materials (discovered 2 exits: [*Mat] / *Min) -10/Mines (discovered 3 exits: [*Mat x2] / [*Sub]) -10/Subcaves (discovered 1 exit: [*Rec]) History --------- Turn | Location | Event 2 | -11/Scrapyard | Met Revision 17 10 | -11/Scrapyard | Discovered new exit (range 15) 86 | -11/Scrapyard | Entered Materials 309 | -10/Materials | Build established: Mutant 544 | -10/Materials | Discovered new exit (range 7) 659 | -10/Materials | Discovered new exit (range 20) 1058 | -10/Materials | Entered Mines 1244 | -10/Mines | Learned location of Recycling (-8) 1398 | -10/Mines | Build established: Scavenger-Mutant 1421 | -10/Mines | Discovered new exit (range 10) 1567 | -10/Mines | Found the Drone Emporium 1583 | -10/Mines | Found Prototype Device 1584 | -10/Mines | Identified Decoy Drone Bay 1771 | -10/Mines | Discovered new exit (range 16) 2045 | -10/Mines | Build established: Mutant 2246 | -10/Mines | Discovered new exit (range 4) 2259 | -10/Mines | Entered Subcaves 2464 | -10/Subcaves | Discovered new exit (range 15) 2662 | -10/Subcaves | Build established: Subdweller-Mutant 2736 | -10/Subcaves | Ambushed by swarm of Subdwellers 2765 | -10/Subcaves | Core integrity fell below 50% 2788 | -10/Subcaves | Shifting Twisted Machinery released Sub. Machine Gun 2796 | -10/Subcaves | Lost 5 parts (2n1u2w) 2806 | -10/Subcaves | A swath of the cavern ceiling suddenly collapsed 2816 | -10/Subcaves | Core integrity fell below 20% 2818 | -10/Subcaves | Destroyed by RD-1GU(R) with Subdweller Beam Cannon Last Messages --------------- Scrap Shield destroyed. Wheel destroyed. Particle Gun destroyed. Sub. Monowheel destroyed. Sub. Machine Gun falls loose from the Twisted Machinery. Y-45 Defender suffers critical hit (Destroy). Lgt. Assault Rifle fries itself beyond repair. G-34 Mercenary crushed by falling debris. G-34 Mercenary destroyed. Y-45 Defender crushed by falling debris. Sub. Optics crushed. WV-43R(R) crushed by falling debris. WV-43R(R) destroyed. Scrap Shield Fragment crushed. A swath of the cavern ceiling suddenly collapses. Acquired Sub. Monowheel. Y-45 Defender destroyed. Acquired Sub. Monowheel. Acquired Flamer. [Achievement: First Step to Greatness] Map ----- +----------------------------------------------------+ | ?????????????????????????????????????????????????? | | ?????????????????????????????????????????????????? | | ?????????????????????????????????????????????????? | | ?????????????????????????????????????????????????? | | ?????????????????????????????????????????????????? | | ?????????????????????????????????????????????????? | | ?????????????????????????????????????????????????? | | ?????????????????????????????????????????????????? | | ?????????????????????????????????????????????????? | | ?????????????????????????????????????????????????? | | ?????????????????????????????????????????????????? | | ?????????????????????????????????????????????????? | | ?????????????????????????????????????????????????? | | ?????????????????????????????????????????????????? | | ?????????????????????????????????????????????????? | | ?????????????????????????????????????????????????? | | ?????????????????????????????????????????????????? | | ???????????????????????????????###???????????????? | | ??????????????????????????????? ##??????????????? | | ?????????????????????????????? #??????????????? | | ????????????????????????????? ???????????????? | | ????????????????????????????? ??#?????????????? | | ????????????????????????????# #?? ????????????? | | ????????????????????????#### ### ?????????????? | | ???????????????????#??###%###"#"# "?????????????? | | ??????????????????## ## &@#& ""#"#""#????????????? | | ?????????????????## R##"#"""""##???????????? | | ?????????????????# R ##"" """##????######? | | ?????????????????# ### ""##""""""###### #? | | ?????????????????# ??# #####""""""##" # "#? | | ?????????????????##???# RR#####" """ #? | | ??????????????????????## R "" #? | | ?????????????????###### """ #### ### #? | | ????????????# ### [""" ####??###?# #? | | ?????????? " ##????????# #? | | ?????????? #????????# #? | | ?????????? ;## #???????# #? | | ??????????? ### #### #???#### #? | | ???????????????# ???# ## ###??## ##? | | ???????????????# ##?### #?####### #? | | ?????????????? ##### #??## #? | | ???????????? ?# #??# #? | | ????????????# ??# ### ### #? | | ????????????? ? ### #? | | ????????????? ?? ##? | | ?????????????? ??? #?? | | ?????????????? ???? ## #?? | | ?????????????????????? ?## #?? | | ????????????????????????? #??### ## ##? | | ??????????????????????????? #?????##?##%= #? | +----------------------------------------------------+ Best States ------------- Heat Dissipation 25 Energy Generation 15 Energy Capacity 250 Matter Stores 300 Matter Capacity 300 Sight Range 16 Robot Scan Range 14 Terrain Scan Density 10 Armor Coverage 800 Evasion (%) 55 Item Schematics ----------------- None Robot Schematics ------------------ None Fabricated ------------ Nothing Alien Tech Used ----------------- None Achievements -------------- First Step to Greatness Risk Taker Uninvited Guest Challenges ------------ None Game ------ Seed BoreImpulseMegatreads Manual? 0 Play Time 00:33:13 Cumulative 0.5 hours Start 2024.04.05 @ 19:41:36 End 2024.04.05 @ 20:18:06 Sessions 1 Manual Loads 0 Difficulty Rogue Special Mode None Game No. 1 Rogue 1 Adventurer 0 Explorer 0 Win Type - Total 0 Types 0/0/0/0/0/0/0/0/0 Lore% 0 Gallery% 3 Achievement% 2 Wizard Run 0 Options --------- Layout 0 ASCII 0 Keyboard 1 Movement Arrows Keybinds 0 Fullscreen 1 Font 18/SmallcapsGlow Map View 76x50 Zoom Use 0% Tactical HUD 0 Map Filters NONE Filters NONE Steam 1 RUN: d2a79769-151b-496f-b4e8-a2c0b07efbdb